bitfinex/quotes_ETHUSD_20250414
["timestamp","ask_amount","ask_price","bid_price","bid_amount"]
[1744593462063,1.5276,1613.8,1613.2,11.55264]
[1744593462372,4.95802,1613.6,1613.2,11.55264]
[1744593462547,4.95802,1613.6,1613.2,0.4336]
[1744593462744,6.48489,1613.8,1613.1,0.02]
[1744593462745,4.95862,1613.4,1613.1,0.02]
[1744593462971,4.959,1613.3,1613.1,0.02]
[1744593463160,4.95908,1613.2,1613.1,0.02]
[1744593463473,5.76168,1613.2,1613.1,0.02]
[1744593465487,4.959,1613.3,1613.1,0.02]
[1744593465646,4.95852,1613.4,1613.1,0.02]
[1744593465979,13.01099,1613.5,1613.1,0.02]
[1744593466185,7.25,1613.5,1613.2,4.95885]
[1744593466571,7.25,1613.5,1613.2,5.39245]
[1744593466768,12.20816,1613.5,1613.2,0.4336]
[1744593467577,7.25,1613.5,1613.3,4.95872]
[1744593468075,7.25,1613.5,1613.2,5.39263]
[1744593468444,12.2082,1613.5,1613.2,5.39263]
[1744593468646,4.95852,1613.4,1613.2,0.4336]
[1744593468848,8.47082,1613.5,1613.1,4.97936]
[1744593469177,12.20827,1613.5,1613.2,4.95906]
[1744593469775,12.20827,1613.5,1613.1,0.02]
[1744593469948,9.91728,1613.4,1613.1,0.02]
[1744593470148,4.95861,1613.4,1613.1,0.02]
[1744593470360,9.91728,1613.4,1613.1,0.02]
[1744593470562,4.95883,1613.3,1613.1,0.02]
[1744593470765,9.91782,1613.3,1613.1,0.02]
[1744593471455,4.95908,1613.2,1613.1,0.02]
[1744593472146,4.95883,1613.3,1613.1,0.02]
[1744593472348,12.2084,1613.5,1613.1,4.9792]
[1744593472553,4.95858,1613.4,1613.1,0.02]
[1744593472979,7.25,1613.5,1613.2,0.4336]
[1744593473291,7.25,1613.5,1613.2,5.39256]
[1744593473845,7.25,1613.5,1613.2,10.35148]
[1744593474386,7.25,1613.5,1613.2,5.39252]
[1744593474555,7.25,1613.5,1613.2,6.429708]
[1744593475099,7.25,1613.5,1613.2,11.388638]
[1744593475252,1.543,1613.8,1613.4,4.95847]
[1744593475253,13.01635,1613.8,1613.4,4.95847]
[1744593475583,13.01635,1613.8,1613.2,1.470788]
[1744593475584,7.241,1613.8,1613.5,10.34959]
[1744593475890,7.241,1613.8,1613.5,6.426519]
[1744593476184,7.241,1613.8,1613.3,3.4336]
[1744593476372,0.818,1613.7,1613.1,5.41297]
[1744593476691,4.95801,1613.6,1613.2,4.95908]
[1744593476981,9.91608,1613.6,1613.2,4.95908]
[1744593477154,9.91608,1613.6,1613.2,5.996274]
[1744593477350,4.95801,1613.6,1613.2,5.996274]
[1744593480094,4.95827,1613.5,1613.2,5.996274]
[1744593480295,4.95827,1613.5,1613.1,5.41286]
[1744593480590,4.95847,1613.4,1613.1,5.41286]
[1744593480771,4.95847,1613.4,1613.1,0.02]
[1744593480972,4.95827,1613.5,1613.1,0.02]
[1744593481169,4.95788,1613.6,1613.2,4.95894]
[1744593481362,4.95836,1613.5,1613.1,5.820674]
[1744593481562,4.95889,1613.3,1613.1,0.02]
[1744593481859,4.95849,1613.4,1613.1,0.02]
[1744593482495,4.95902,1613.3,1613.1,0.02]
[1744593483193,5.77647,1613.4,1613.1,0.02]
[1744593483561,10.73512,1613.4,1613.1,0.02]
[1744593484672,5.77647,1613.4,1613.1,0.02]
[1744593485461,10.73511,1613.4,1613.1,0.02]
[1744593486286,12.532721,1613.4,1613.1,0.02]
[1744593486598,4.95908,1613.2,1613.1,0.02]
[1744593486990,5.74728,1613.2,1613.1,0.02]
[1744593488274,8.95056223,1613.2,1613.1,0.02]
[1744593488500,11.95056223,1613.2,1613.1,0.02]
[1744593488701,4.96131,1612.5,1612.1,4.98243]
[1744593488895,4.96131,1612.5,1612.2,0.4336]
[1744593489094,4.96131,1612.5,1612.2,5.45777924]
[1744593489306,4.96131,1612.5,1612.2,0.49561924]
[1744593489506,5.457371,1612.5,1612.1,3.02]
[1744593489698,4.96124,1612.5,1612.1,3.08202278]
[1744593489899,4.96124,1612.5,1612.1,3.02]
[1744593490205,4.96124,1612.5,1612.1,7.98236]
[1744593490409,4.96155,1612.4,1612.1,3.02]
[1744593491606,4.96124,1612.5,1612.1,7.98244]
[1744593491812,4.96124,1612.5,1612.1,13.00677225]
[1744593492010,4.96124,1612.5,1612.1,4.40375383]
[1744593492315,4.96166,1612.4,1612.1,3.02]
[1744593492528,4.96124,1612.5,1612.1,3.02]
[1744593492529,4.96124,1612.5,1612.1,7.98227]
[1744593492834,9.92267,1612.5,1612.1,7.98227]
[1744593493129,4.96155,1612.4,1612.1,7.98227]
[1744593493428,4.96096,1612.6,1612.2,4.96202]
[1744593493627,9.92211,1612.6,1612.2,4.96202]
[1744593493829,4.96124,1612.5,1612.2,4.96202]
[1744593494329,6.031991,1612.6,1612.3,0.14126006]
[1744593494526,1.071031,1612.6,1612.3,5.10299006]
[1744593494732,12.20145,1612.8,1612.3,0.57486006]
[1744593494952,7.244,1612.9,1612.6,4.96079]
[1744593495229,7.244,1612.9,1612.7,5.08540948]
[1744593495423,4.95939,1613.1,1612.8,0.4336]
[1744593495610,9.919,1613.1,1612.9,0.12425386]
[1744593495810,4.95939,1613.1,1612.8,0.4336]
[1744593496033,53.161,1613.4,1612.9,3.38947278]
[1744593496208,12.20086,1613.6,1613.2,4.9589]
[1744593496413,5.74587,1613.7,1613.3,5.07549528]
[1744593496605,4.95767,1613.7,1613.3,10.03410528]
[1744593496807,12.20024,1613.8,1613.4,5.02030947]
[1744593497001,9.03754,1613.8,1613.5,0.11704854]
[1744593497200,4.95785,1613.6,1613.2,3.4336]
[1744593497416,17.15772,1613.8,1613.4,4.95845]
[1744593497615,7.243,1613.8,1613.2,8.39267]
[1744593497815,7.243,1613.8,1613.3,0.13855066]
[1744593497816,4.95818,1613.5,1613.3,0.13855066]
[1744593498027,4.95814,1613.6,1613.3,0.13855066]
[1744593498226,4.95808,1613.6,1613.3,0.13855066]
[1744593498542,4.95832,1613.5,1613.3,0.13855066]
[1744593499040,4.95858,1613.4,1613.3,0.13847372]
[1744593499337,4.95832,1613.5,1613.1,4.95927]
[1744593499838,4.95848,1613.4,1613.1,0.13847249]
[1744593500034,5.74422,1613.6,1613.2,4.95895]
[1744593500237,4.95792,1613.6,1613.2,10.05670956]
[1744593500444,10.90755,1613.6,1613.2,5.09775956]
[1744593500737,10.90755,1613.6,1613.2,4.95892]
[1744593500935,5.94947,1613.6,1613.2,4.95892]
[1744593501135,5.94947,1613.6,1613.2,0.06198153]
[1744593501335,4.95842,1613.5,1613.0,11.55319]
[1744593501541,4.95857,1613.4,1613.0,11.55319]
[1744593501735,4.95857,1613.4,1613.0,11.69175662]
[1744593501936,4.95857,1613.4,1613.0,10.49126662]
[1744593502136,4.95758,1613.7,1613.3,4.95861]
[1744593502338,6.256268,1613.7,1613.3,4.95861]
[1744593502562,4.95797,1613.6,1613.2,4.95896]
[1744593502765,4.95839,1613.5,1613.3,0.11551328]
[1744593502977,4.95839,1613.5,1613.1,4.95936]
[1744593502978,1.298688,1613.7,1613.2,0.11565567]
[1744593503268,6.256268,1613.7,1613.4,5.39206]
[1744593503957,7.243,1613.8,1613.5,4.95811]
[1744593504154,7.243,1613.8,1613.4,5.39206]
[1744593504363,4.95786,1613.6,1613.4,0.4336]
[1744593504532,4.95783,1613.7,1613.4,0.4336]
[1744593504736,7.243,1613.8,1613.4,0.49557206]
[1744593505039,7.243,1613.8,1613.6,4.95785]
[1744593506570,7.243,1613.8,1613.5,4.95802]
[1744593506870,12.20035,1613.8,1613.4,5.39203]
[1744593507039,18.377895,1613.8,1613.4,5.39203]
[1744593507248,4.95765,1613.7,1613.4,0.4336]
[1744593508547,4.95787,1613.6,1613.4,0.4336]
[1744593509163,4.95765,1613.7,1613.4,0.4336]
[1744593509358,4.95864,1613.4,1613.2,0.4336]
[1744593509560,4.95821,1613.5,1613.2,0.4336]
[1744593510163,4.95858,1613.4,1613.0,11.55319]
[1744593510364,4.95858,1613.4,1613.0,11.55312]
[1744593510672,4.95858,1613.4,1613.0,16.51265]
[1744593511238,5.950259,1613.4,1613.0,11.55312]
[1744593511473,4.95883,1613.3,1613.0,11.55312]
[1744593511669,9.91778,1613.3,1613.0,3.4336]
[1744593511873,4.95883,1613.3,1613.0,3.4336]
[1744593512975,1.777979,1613.4,1613.0,0.4336]
[1744593513163,4.95923,1613.2,1613.0,0.4336]
[1744593513482,5.951033,1613.2,1612.9,4.95997]
[1744593513646,4.95923,1613.2,1612.9,4.95997]
[1744593514283,9.91848,1613.2,1612.8,5.39377]
[1744593514454,4.95947,1613.1,1612.8,5.39377]
[1744593514660,4.95993,1613.0,1612.8,0.4336]
[1744593514878,4.95993,1613.0,1612.6,18.04642082]
[1744593515174,4.95993,1613.0,1612.6,10.81642082]
[1744593515479,4.96032,1612.8,1612.4,5.39497]
[1744593515655,4.96032,1612.8,1612.5,3.0]
[1744593515982,4.96077,1612.7,1612.4,0.4336]
[1744593516486,5.456352,1612.8,1612.2,0.4336]
[1744593516487,1.282332,1612.8,1612.2,0.4336]
[1744593516648,4.96154,1612.5,1612.2,0.4336]
[1744593517049,0.7863,1612.8,1612.5,4.96123]
[1744593517343,4.96019,1612.9,1612.5,0.4336]
[1744593517557,4.96043,1612.8,1612.6,0.14023966]
[1744593518294,9.92095,1612.8,1612.6,0.14023966]
[1744593518590,4.96043,1612.8,1612.6,0.14023966]
[1744593520105,7.23,1613.0,1612.7,4.96061]
[1744593520512,8.950159,1613.4,1612.9,4.96]
[1744593520513,4.9588,1613.3,1612.9,4.96]
[1744593520672,7.231,1613.3,1613.0,5.02157201]
[1744593520874,9.91655,1613.5,1613.1,5.07956709]
[1744593521188,71.09336,1613.6,1613.2,4.95905]
[1744593521371,61.1773,1613.6,1613.1,0.12028709]
[1744593521678,4.95868,1613.4,1613.2,0.11728535]
[1744593521890,4.95868,1613.4,1613.0,4.95968]
[1744593522089,4.95868,1613.4,1613.1,0.11787615]
[1744593522797,66.13525,1613.6,1613.1,6.08081377]
[1744593523000,0.7863,1614.0,1613.4,3.20606171]
[1744593523179,0.7863,1614.0,1613.6,10.34901]
[1744593523180,5.74307,1614.0,1613.6,10.34901]
[1744593524173,5.74307,1614.0,1613.6,10.41097448]
[1744593524489,6.813012,1614.0,1613.6,10.34901]
[1744593524889,6.813012,1614.0,1613.6,5.39127]
[1744593525103,0.7863,1614.2,1613.8,4.95696]
[1744593525304,7.231,1614.3,1614.0,0.4336]
[1744593525469,7.231,1614.3,1614.0,5.39004]
[1744593525676,4.9565,1614.1,1613.8,0.4336]
[1744593525998,4.95667,1614.0,1613.8,0.4336]
[1744593526402,4.9565,1614.1,1613.8,0.4336]
[1744593528101,4.95678,1614.0,1613.8,0.4336]
[1744593528304,1.069882,1614.1,1613.6,0.4336]
[1744593528510,4.95741,1613.8,1613.4,10.35026]
[1744593528875,4.95755,1613.7,1613.4,5.3919]
[1744593529174,4.95741,1613.8,1613.4,10.35019]
[1744593529575,4.95741,1613.8,1613.5,0.06197068]
[1744593529779,4.95741,1613.8,1613.4,11.43254664]
[1744593530314,4.95741,1613.8,1613.5,4.95813]
[1744593531299,4.95741,1613.8,1613.4,5.39189]
[1744593532006,4.95757,1613.7,1613.4,0.4336]
[1744593532207,4.95786,1613.6,1613.2,5.39267]
[1744593532390,0.495757,1613.7,1613.2,0.4336]
[1744593532598,4.95858,1613.4,1613.0,5.3932]
[1744593533313,4.95909,1613.2,1612.9,3.0]
[1744593533488,4.95909,1613.2,1612.8,5.85440616]
[1744593533681,4.95851,1613.4,1613.0,4.95964]
[1744593533909,12.99161,1613.5,1613.1,4.95932]
[1744593534518,17.94996,1613.5,1613.1,4.95932]
[1744593534820,12.99161,1613.5,1613.1,4.95932]
[1744593535208,7.216,1613.5,1613.2,5.39266]
[1744593537528,12.17419,1613.5,1613.2,5.39266]
[1744593538617,8.929207,1613.5,1613.0,5.39318]
[1744593538926,4.95867,1613.4,1613.0,5.39319]
[1744593539092,12.1742,1613.5,1613.1,9.98037627]
[1744593539295,12.1742,1613.5,1613.1,9.91839]
[1744593539492,4.9586,1613.4,1613.0,5.45518599]
[1744593539819,4.95879,1613.3,1613.0,5.3932]
[1744593540022,6.67188,1613.4,1613.0,5.3932]
[1744593540023,6.67188,1613.4,1613.0,5.45516946]
[1744593540217,6.67188,1613.4,1613.0,5.39318]
[1744593541019,9.91775,1613.3,1613.0,0.4336]
[1744593541221,6.6718,1613.4,1613.1,4.95939]
[1744593541427,12.1742,1613.5,1613.1,9.91878]
[1744593541596,17.13255,1613.5,1613.1,4.95939]
[1744593541798,4.95847,1613.4,1613.1,4.95939]
[1744593542313,12.1742,1613.5,1613.1,4.95939]
[1744593542513,13.969149,1613.5,1613.1,4.95939]
[1744593542715,18.927489,1613.5,1613.1,4.95939]
[1744593543116,9.010949,1613.5,1613.2,4.95903]
[1744593543335,7.216,1613.5,1613.3,4.95865]
[1744593543495,4.95755,1613.7,1613.3,5.39225]
[1744593543700,0.8266,1613.8,1613.3,0.4336]
[1744593543994,4.95816,1613.5,1613.1,10.35232]
[1744593544199,4.95816,1613.5,1613.1,11.687552]
[1744593544501,4.95788,1613.6,1613.2,4.95893]
[1744593544711,4.9576,1613.7,1613.4,4.95847]
[1744593544911,10.74129,1613.8,1613.4,4.95847]
[1744593545128,4.95757,1613.7,1613.4,4.95847]
[1744593545508,5.78388,1613.8,1613.4,9.91684]
[1744593545803,5.78388,1613.8,1613.3,4.95872]
[1744593545804,4.95755,1613.7,1613.3,4.95872]
[1744593545999,4.95827,1613.5,1613.2,4.95904]
[1744593546422,4.95764,1613.7,1613.3,4.95856]
[1744593546951,4.95827,1613.5,1613.1,5.39283]
[1744593547120,4.95795,1613.6,1613.2,5.56016526]
[1744593547505,9.91603,1613.6,1613.2,5.498183]
[1744593547712,4.95827,1613.5,1613.1,5.39283]
[1744593547913,5.78487,1613.5,1613.1,5.39283]
[1744593548128,4.95847,1613.4,1613.1,5.39283]
[1744593548343,4.95847,1613.4,1613.1,4.95935]
[1744593548507,5.78477,1613.5,1612.9,3.6363408]
[1744593548508,4.95799,1613.6,1613.2,4.95886]
[1744593548707,4.95849,1613.4,1613.1,4.95934]
[1744593549112,4.95791,1613.6,1613.2,5.02079517]
[1744593549318,9.91593,1613.6,1613.2,4.95881]
[1744593549839,4.95791,1613.6,1613.2,4.95881]
[1744593550041,13.00076,1613.9,1613.6,4.95785]
[1744593550223,14.796502,1613.9,1613.6,4.95785]
[1744593550813,19.753652,1613.9,1613.5,4.95811]
[1744593551015,4.95767,1613.7,1613.4,4.95841]
[1744593551658,4.95728,1613.8,1613.4,9.91672]
[1744593551861,4.95728,1613.8,1613.5,4.95812]
[1744593553439,6.43058995,1613.8,1613.3,5.39232]
[1744593553641,4.9577,1613.7,1613.3,5.39232]
[1744593553812,4.9577,1613.7,1613.3,10.35104]
[1744593554013,9.91545,1613.7,1613.3,5.39232]
[1744593555842,8.0436,1613.9,1613.3,0.4336]
[1744593556049,13.0006,1613.9,1613.5,4.95786]
[1744593556241,12.174,1613.9,1613.5,4.95786]
[1744593556617,12.174,1613.9,1613.5,9.91591]
[1744593557219,12.174,1613.9,1613.6,4.95784]
[1744593557557,7.217,1613.9,1613.6,4.95773]
[1744593557851,12.17397,1613.9,1613.6,4.95773]
[1744593558018,7.217,1613.9,1613.4,4.95844]
[1744593558215,4.95832,1613.5,1613.1,0.4336]
[1744593558419,4.95832,1613.5,1613.2,4.95899]
[1744593558671,4.95766,1613.7,1613.3,4.95862]
[1744593558962,0.7979,1613.8,1613.5,4.95802]
[1744593559165,5.75538,1613.8,1613.4,4.95843]
[1744593559322,0.7979,1613.8,1613.5,4.958]
[1744593559648,12.17399,1613.9,1613.5,4.958]
[1744593559944,4.95724,1613.8,1613.5,4.958]
[1744593560155,5.75545,1613.7,1613.3,10.35097]
[1744593560445,5.75545,1613.7,1613.3,5.39224]
[1744593560620,9.91594,1613.6,1613.2,4.95906]
[1744593560823,4.95787,1613.6,1613.2,9.91803]
[1744593561259,4.95787,1613.6,1613.3,4.95874]
[1744593561549,4.95787,1613.6,1613.2,9.91795]
[1744593561741,4.95787,1613.6,1613.2,10.953105]
[1744593562255,9.91589,1613.6,1613.2,5.994125]
[1744593562558,4.95787,1613.6,1613.2,9.91794]
[1744593562779,4.95787,1613.6,1613.3,4.9587]
[1744593562961,4.95787,1613.6,1613.2,4.95897]
[1744593563627,4.95787,1613.6,1613.2,9.91789]
[1744593563830,6.331015,1613.7,1613.3,9.91734]
[1744593564059,6.331015,1613.7,1613.3,4.95866]
[1744593564463,13.535015,1613.7,1613.3,4.95866]
[1744593564658,12.95947,1613.7,1613.3,4.95866]
[1744593564860,8.0019,1613.7,1613.4,4.9583]
[1744593565042,7.204,1613.7,1613.4,4.9583]
[1744593565367,7.204,1613.7,1613.5,4.95807]
[1744593565566,12.16159,1613.7,1613.3,4.95869]
[1744593565864,5.75592,1613.6,1613.2,4.95906]
[1744593566064,5.75592,1613.6,1613.1,8.5956908]
[1744593566362,0.7979,1613.1,1612.7,5.39418]
[1744593566561,0.7979,1613.1,1612.8,4.96018]
[1744593566871,8.0019,1613.3,1612.7,9.1363288]
[1744593567075,7.204,1613.3,1613.1,4.95926]
[1744593567438,7.204,1613.3,1613.1,9.91847]
[1744593567660,4.9579,1613.6,1613.3,4.95859]
[1744593567661,7.204,1613.6,1613.3,4.95859]
[1744593567876,12.16198,1613.6,1613.2,4.95893]
[1744593568071,7.204,1613.6,1613.3,9.91735]
[1744593568258,7.204,1613.6,1613.4,4.95834]
[1744593568475,7.204,1613.6,1613.5,4.95816]
[1744593568797,7.204,1613.6,1613.3,5.39234]
[1744593568996,5.75556,1613.7,1613.3,10.35096]
[1744593569205,12.95887,1613.9,1613.5,4.95801]
[1744593569371,12.95887,1613.9,1613.5,9.91606]
[1744593569573,12.95887,1613.9,1613.5,4.95801]
[1744593569784,12.95887,1613.9,1613.5,9.916]
[1744593569985,8.0019,1613.9,1613.6,4.95782]
[1744593570192,8.0019,1613.9,1613.6,4.95772]
[1744593570994,4.9579,1613.6,1613.3,0.4336]
[1744593571293,1.29369,1613.6,1613.3,4.95864]
[1744593571500,4.95755,1613.7,1613.4,4.95844]
[1744593572567,5.75518,1613.8,1613.4,9.91679]
[1744593572768,5.75518,1613.8,1613.5,4.95816]
[1744593575002,0.7979,1613.8,1613.5,4.95816]
[1744593576781,17.11807,1613.9,1613.5,4.95816]
[1744593577706,4.95725,1613.8,1613.5,4.95816]
[1744593578704,4.95725,1613.8,1613.4,10.3503]
[1744593578889,4.95725,1613.8,1613.4,5.39195]
[1744593579095,4.95757,1613.7,1613.4,5.39195]
[1744593579299,4.95725,1613.8,1613.4,10.35028]
[1744593579907,4.95757,1613.7,1613.4,5.39193]
[1744593582506,4.95725,1613.8,1613.4,10.35028]
[1744593582711,4.95725,1613.8,1613.4,5.39193]
[1744593583311,4.95725,1613.8,1613.5,4.95813]
[1744593584114,12.16098,1613.9,1613.5,4.95813]
[1744593584311,12.16098,1613.9,1613.5,9.91613]
[1744593584878,7.204,1613.9,1613.4,0.4336]
[1744593585110,0.7204,1613.8,1613.4,0.4336]
[1744593585291,7.204,1613.9,1613.6,4.95785]
[1744593585486,7.204,1613.9,1613.7,4.95754]
[1744593585698,7.204,1613.9,1613.8,4.95724]
[1744593585883,17.87315,1614.2,1613.8,4.95724]
[1744593586088,4.95634,1614.1,1613.8,4.95724]
[1744593587022,58.86715,1614.4,1614.0,4.95639]
[1744593587316,4.95612,1614.2,1613.8,9.6282588]
[1744593587518,4.95643,1614.1,1613.8,9.425608]
[1744593587704,4.95643,1614.1,1613.8,3.4336]
[1744593588021,4.95736,1613.8,1613.6,0.4336]
[1744593588322,4.95787,1613.6,1613.2,4.95906]
[1744593588503,4.95838,1613.5,1613.2,5.39266]
[1744593588710,4.95838,1613.5,1613.2,0.4336]
[1744593589284,5.70848,1613.5,1613.0,3.6363408]
[1744593589489,4.95789,1613.6,1613.2,4.95903]
[1744593590015,4.95827,1613.5,1613.1,4.95936]
[1744593590391,4.95827,1613.5,1613.2,6.59331851]
[1744593590592,9.91663,1613.5,1613.2,6.59331851]
[1744593590790,4.95827,1613.5,1613.2,6.59331851]
[1744593591023,4.95786,1613.6,1613.2,11.55216851]
[1744593591324,4.95817,1613.5,1613.2,11.55216851]
[1744593591488,4.95817,1613.5,1613.2,6.59331851]
[1744593592008,4.95817,1613.5,1613.2,11.55237851]
[1744593593111,4.95817,1613.5,1613.2,4.95906]
[1744593593511,4.95864,1613.4,1613.0,5.39328]
[1744593593708,4.95939,1613.1,1612.8,5.39387]
[1744593593929,4.95939,1613.1,1612.7,4.96059]
[1744593594237,4.95939,1613.1,1612.7,5.996098]
[1744593594445,5.71024,1612.9,1612.6,3.4336]
[1744593594822,0.7501,1612.9,1612.6,8.39449]
[1744593595022,4.95974,1613.0,1612.7,4.96061]
[1744593595539,0.7501,1613.1,1612.7,5.02252247]
[1744593595743,5.7095,1613.1,1612.8,4.9602]
[1744593595948,12.15113,1613.2,1612.8,5.952242]
[1744593596249,12.15113,1613.2,1612.6,8.3945]
[1744593596250,4.95941,1613.1,1612.6,8.3945]
[1744593596417,10.66994,1613.0,1612.6,8.3945]
[1744593596818,5.71002,1613.0,1612.6,8.3945]
[1744593597036,4.96001,1612.9,1612.6,8.3945]
[1744593597515,4.96078,1612.7,1612.4,0.4336]
[1744593597846,0.7501,1612.6,1612.3,4.96167]
[1744593598057,0.7501,1612.6,1612.2,5.39571]
[1744593598363,4.96136,1612.5,1612.1,8.1851708]
[1744593598533,9.92281,1612.5,1612.1,4.98243]
[1744593598869,0.7501,1612.6,1612.1,0.02]
[1744593598870,4.96177,1612.4,1612.1,0.02]
[1744593599059,9.92354,1612.4,1612.1,0.02]
[1744593599243,4.96177,1612.4,1612.1,0.02]
[1744593599621,4.96124,1612.5,1612.1,6.06004961]
[1744593599811,4.96124,1612.5,1612.2,0.12180195]
[1744593600183,4.96124,1612.5,1612.1,6.05993961]
[1744593600386,5.71105,1612.6,1612.3,0.12146692]
[1744593600547,5.71105,1612.6,1612.2,5.08381195]
[1744593600878,4.96143,1612.5,1612.2,0.12180195]
[1744593601091,4.96143,1612.5,1612.1,9.94472]
[1744593601290,4.96143,1612.5,1612.2,0.12173784]
[1744593601447,9.92286,1612.5,1612.2,0.12173784]
[1744593601642,4.96143,1612.5,1612.2,0.12173784]
[1744593601864,4.96143,1612.5,1612.1,4.98228]
[1744593602082,6.8278298,1612.6,1612.3,0.12140282]
[1744593602265,6.8278298,1612.6,1612.2,5.08387784]
[1744593602581,6.8278298,1612.6,1612.3,0.12140282]
[1744593602582,4.9614,1612.5,1612.3,0.12140282]
[1744593602885,4.96154,1612.4,1612.3,0.12140282]
[1744593603178,4.9614,1612.5,1612.1,4.98238]
[1744593603389,0.7501,1612.6,1612.3,4.96184]
[1744593603543,4.96063,1612.7,1612.4,0.4336]
[1744593603749,9.92148,1612.7,1612.4,0.12106784]
[1744593603945,7.192,1612.8,1612.4,5.02351599]
[1744593604164,4.96065,1612.7,1612.5,0.11981816]
[1744593604489,5.71373,1612.6,1612.5,0.11981816]
[1744593604859,4.96146,1612.5,1612.1,5.41604]
[1744593605203,4.96146,1612.5,1612.1,10.37839]
[1744593605405,9.92291,1612.5,1612.1,5.41595]
[1744593605607,4.96155,1612.4,1612.1,5.41595]
[1744593605811,5.71378,1612.6,1612.2,4.96205]
[1744593606007,0.7528,1612.6,1612.3,4.96156]
[1744593606226,4.96084,1612.7,1612.4,4.96153]
[1744593606375,7.192,1612.8,1612.5,5.39468]
[1744593606576,12.15232,1612.8,1612.5,0.4336]
[1744593606770,17.11281,1612.8,1612.5,0.4336]
[1744593607007,4.96093,1612.6,1612.3,4.96182]
[1744593607583,7.192,1612.8,1612.4,0.06201754]
[1744593607782,5.71226,1613.1,1612.5,3.6363408]
[1744593607983,7.195,1613.1,1612.9,4.95995]
[1744593608183,12.90654,1613.4,1613.0,4.9597]
[1744593608389,7.9478,1613.4,1613.1,4.95929]
[1744593608583,7.9478,1613.4,1612.9,4.1323358]
[1744593608800,4.95879,1613.3,1612.9,14.0520858]
[1744593609002,4.95879,1613.3,1613.0,6.36487858]
[1744593609401,4.95879,1613.3,1612.9,3.0]
[1744593609402,4.95915,1613.2,1612.9,3.0]
[1744593609803,12.90628,1613.4,1613.0,4.95954]
[1744593609992,7.195,1613.4,1613.1,4.95918]
[1744593610198,53.154,1613.5,1613.1,8.22411472]
[1744593610394,7.195,1613.7,1613.4,4.95847]
[1744593610598,8.490516,1613.7,1613.4,4.95847]
[1744593610907,8.490516,1613.7,1613.4,0.13844989]
[1744593611097,4.95816,1613.5,1613.4,0.13844989]
[1744593611286,4.95816,1613.5,1613.1,4.95919]
[1744593611486,4.95816,1613.5,1613.2,0.13871475]
[1744593612909,4.95804,1613.6,1613.2,5.15973618]
[1744593613109,4.95804,1613.6,1613.2,6.1716288]
[1744593613307,4.95821,1613.5,1613.2,1.15060737]
[1744593613508,0.8029,1613.4,1613.2,0.13871475]
[1744593613813,5.76079,1613.6,1613.2,4.95908]
[1744593614010,7.6816786,1613.6,1613.3,0.11594045]
[1744593614213,7.195,1613.7,1613.4,4.95835]
[1744593614386,7.195,1613.7,1613.4,5.39195]
[1744593614594,12.15271,1613.7,1613.5,0.11552767]
[1744593614912,4.95788,1613.6,1613.2,10.35157]
[1744593615075,4.95788,1613.6,1613.3,0.13951278]
[1744593615076,9.91594,1613.6,1613.3,0.13951278]
[1744593615278,4.95831,1613.5,1613.3,0.13951278]
[1744593615503,4.95831,1613.5,1613.1,9.91861]
[1744593615700,12.15258,1613.7,1613.2,5.02090976]
[1744593615887,7.195,1613.7,1613.4,4.95847]
[1744593616092,9.91439,1613.9,1613.5,4.95808]
[1744593616385,9.91478,1613.8,1613.4,4.95844]
[1744593616780,0.8029,1613.8,1613.2,11.62098098]
[1744593616980,0.8029,1613.8,1613.3,0.11556265]
[1744593616981,4.95847,1613.4,1613.3,0.11556265]
[1744593617187,4.95821,1613.5,1613.3,0.11556265]
[1744593617388,4.95821,1613.5,1613.1,0.4336]
[1744593617595,4.95821,1613.5,1613.2,4.95905]
[1744593618307,5.78502,1613.4,1613.0,11.1623908]
[1744593618617,10.74379,1613.4,1613.0,7.95965]
[1744593619114,5.78502,1613.4,1613.0,7.95955]
[1744593619314,4.95818,1613.5,1613.2,4.95907]
[1744593619515,17.93532,1613.6,1613.2,4.95907]
[1744593619884,4.95817,1613.5,1613.2,4.95907]
[1744593620086,9.91659,1613.5,1613.1,4.95935]
[1744593620514,4.95847,1613.4,1613.1,4.95935]
[1744593620696,4.95847,1613.4,1613.0,12.4977158]
[1744593620892,4.95847,1613.4,1613.1,0.78328358]
[1744593621203,4.95817,1613.5,1613.1,5.74250358]
[1744593621410,5.78528,1613.3,1612.9,5.39354]
[1744593622285,5.78528,1613.3,1612.9,10.41541182]
[1744593622896,0.8264,1613.3,1613.0,4.95965]
[1744593623095,0.8264,1613.3,1613.0,5.50508418]
[1744593623326,5.78523,1613.3,1613.0,5.50508418]
[1744593624592,0.8264,1613.3,1613.0,4.95956]
[1744593624824,0.8264,1613.3,1613.1,4.95938]
[1744593625130,0.8264,1613.3,1613.1,4.95937]
[1744593625321,0.8264,1613.3,1613.0,4.95957]
[1744593625493,5.78518,1613.3,1612.9,5.39356]
[1744593625695,10.74425,1613.3,1612.9,6.79473406]
[1744593626197,4.9582,1613.5,1612.9,1.89676508]
[1744593626392,8.0194,1613.6,1613.0,3.2027408]
[1744593626748,4.95853,1613.4,1613.1,4.95925]
[1744593627038,9.91721,1613.4,1613.0,4.95969]
[1744593627192,9.91721,1613.4,1613.1,0.495969]
[1744593627396,4.95881,1613.3,1613.1,0.495969]
[1744593627595,10.7442,1613.3,1612.9,8.39356]
[1744593627812,5.78521,1613.3,1612.9,13.35352]